Cogmind - Beta 13 @@@ ROGUE MODE // 2024.04.26 @ 17:50:06 Player: Maxi98se Result: Destroyed by G-47 Trooper with Particle Gun Performance ------------- Evolutions (0) 0 Regions Visited (2) 400 Robots Destroyed (14) 70 Value Destroyed (294) 294 Prototype IDs (2) 40 Alien Tech Used (0) 0 Bonus (0) 0 TOTAL SCORE: 804 Bonus ------- None Cogmind --------- Core Integrity 0/250 Matter 235/300 Energy 123/125 System Corruption 3% Temperature Cool (29) Movement Hovering (80) Location -10/Mines Parts ------- > --- POWER (1) -------- Light Ion Engine > --- PROPULSION (2) --- Backup Propulsion I Flight Unit > --- UTILITY (2) ------ Visual Processing Unit Signal Interpreter > --- WEAPON (2) ------- Assault Rifle Light Assault Rifle > --- INVENTORY (5) ---- Improved Heat Sink Medium Matter Pod (100) Peak State ------------ > --- POWER ------------ Light Ion Engine > --- PROPULSION ------- Wheel Wheel > --- UTILITY ---------- Visual Processing Unit Tractor Beam > --- WEAPON ----------- Small Laser Grenade Launcher > --- INVENTORY -------- Aluminum Leg Aluminum Leg Medium Matter Pod Assault Rifle Light Assault Rifle [Rating: 8] Favorites ----------- Power Light Ion Engine Engine Light Ion Engine Propulsion Aluminum Leg Leg Aluminum Leg Wheel Wheel Hover Unit Backup Propulsion I Flight Unit Flight Unit Utility Visual Processing Unit Device Tractor Beam Processor Visual Processing Unit Weapon Grenade Launcher Energy Gun Medium Laser Ballistic Gun Light Assault Rifle Launcher Grenade Launcher Build | -11 -10 -10 ------- Run | Yrd Mat Min Slots Evolved . | . . . Power . | . . . Propulsion . | . . . Utility . | . . . Weapon . | . . . Parts Attached 24 | 6 18 . Power 4 | 1 3 . Engine 4 | 1 3 . Core . | . . . Reactor . | . . . Propulsion 11 | 4 7 . Treads . | . . . Leg 6 | 2 4 . Wheel 3 | 2 1 . Hover . | . . . Flight 2 | . 2 . Utility 4 | . 4 . Device 1 | . 1 . Storage . | . . . Processor 3 | . 3 . Hackware . | . . . Protection . | . . . Artifact . | . . . Weapon 5 | 1 4 . Energy Gun 2 | 1 1 . Energy Cannon . | . . . Ballistic Gun 2 | . 2 . Ballistic Cannon . | . . . Launcher 1 | . 1 . Special Weapon . | . . . Impact Weapon . | . . . Slashing Weapon . | . . . Piercing Weapon . | . . . Special Melee Weapon . | . . . Unidentified Prototypes . | . . . Parts Lost 6 | . 6 . Power 2 | . 2 . Propulsion 2 | . 2 . Utility . | . . . Weapon 2 | . 2 . Highest Loss Streak 4 | . 4 . To Critical Strikes . | . . . Average Slot Usage (%) 86 | . 86 100 Engine 9 | . 8 14 Leg 13 | . 13 . Wheel 6 | . 6 . Flight 5 | . 5 14 Processor 23 | . 23 28 Energy Gun 5 | . 5 . Ballistic Gun 13 | . 12 28 Launcher 8 | . 8 . Naked Turns . | . . . Heaviest Build 8 | 5 8 . Greatest Support 20 | 20 20 . Greatest Overweight (x) 2 | . 2 . Average Overweight (x) . | . . . Largest Inventory Capacity 5 | 5 5 5 Average Capacity 5 | 5 5 5 Most Carried 5 | 5 5 2 Average Carried 4 | 4 4 2 Final Capacity 5 | 5 5 5 Final Carried 5 | 5 2 2 Class Distribution -------------------- 100% | Mutant Dominant Class ---------------- Mutant | -10/Materials Mutant | -10/Mines Resources | -11 -10 -10 ----------- Run | Yrd Mat Min Matter Collected 586 | 338 248 . Remotely 20 | . 20 . Salvage Created 349 | 107 242 . Parts 28 | 7 21 . Haulers Intercepted . | . . . Recyclers Shooed 2 | . 2 . Parts Field Recycled . | . . . Retrieved Matter . | . . . Parts Self-Destructed . | . . . Prevented . | . . . Kills | -11 -10 -10 ------- Run | Yrd Mat Min Combat Hostiles Destroyed 8 | 1 7 . Guns 6 | 1 5 . AOE 2 | . 2 . Classes Destroyed 6 | 3 3 . Worker 2 | 1 1 . Tunneler 2 | 2 . . Recycler 1 | . 1 . Watcher 1 | . 1 . Swarmer 3 | . 3 . Grunt 5 | 1 4 . Best Kill Streak 3 | 3 3 . Combat Bots Only 3 | 1 3 . Max Kills in Single Turn 2 | 1 2 . Gunslinging . | . . . Exploded 1 | . 1 . Melee . | . . . Uniques/NPCs Destroyed . | . . . Combat | -11 -10 -10 -------- Run | Yrd Mat Min Hostile Shots Fired 79 | 12 60 7 Missed 21 | 1 19 1 Damage Taken 893 | 134 683 76 Core 250 | 57 169 24 Absorbed by Shields . | . . . Core Remaining (%) 77 | 77 . . Volleys Fired 60 | 20 37 3 Largest 2 | 1 2 2 Hottest 80 | 50 80 40 Shots Fired 87 | 20 61 6 Gun 79 | 20 53 6 Cannon . | . . . Launcher 8 | . 8 . Special . | . . . Kinetic 51 | . 45 6 Thermal 28 | 20 8 . Explosive 8 | . 8 . Electromagnetic . | . . . Robot Hit Streak 10 | 5 10 5 Robot Miss Streak 4 | 2 4 1 Penetration Max . | . . . Secondary Targets 1 | . 1 . Max Gunslinging Chain 1 | . 1 . Shots Hit Robots 52 | 7 40 5 Core Hits 30 | 8 20 2 Critical Kills . | . . . Critical Parts Destroyed . | . . . Critical Strikes 2 | 2 . . Burn 2 | 2 . . Melee Attacks . | . . . Impact . | . . . Slashing . | . . . Piercing . | . . . Sneak Attacks . | . . . Combat Hostiles . | . . . Follow-up Attacks . | . . . Damage Inflicted 917 | 117 736 64 Guns 495 | 88 343 64 Cannons . | . . . Explosions 376 | . 376 . Melee . | . . . Ramming 46 | 29 17 . Kinetic 347 | . 283 64 Thermal 148 | 88 60 . Explosive 376 | . 376 . Electromagnetic . | . . . Impact . | . . . Slashing . | . . . Piercing . | . . . Highest Corruption 3 | . 3 3 Average Corruption 2 | . 2 3 Corruption Purged . | . . . Corruption Blocked . | . . . Effects 1 | . 1 . Matter Fused 1 | . 1 . Overload Shots . | . . . Overflow Damage 17 | . 17 . Projectiles . | . . . Explosions 17 | . 17 . Melee . | . . . Knockbacks . | . . . Impact . | . . . Kinetic . | . . . Secondary . | . . . Self-Inflicted Damage 177 | 13 164 . Shots 6 | . 6 . Rammed 11 | 9 2 . Targets Rammed 15 | 9 6 . Kicked 4 | . 4 . Crushed . | . . . Highest Temperature 112 | 112 50 39 Average Temperature 27 | 39 13 23 Received Heat Transfer 423 | 66 294 63 Siege Activations . | . . . Robots Corrupted . | . . . Combat Hostiles . | . . . Parts Fried . | . . . Impact Corruptions . | . . . Robots Melted . | . . . Combat Hostiles . | . . . Parts Melted 1 | 1 . . Heat Transferred 544 | 407 137 . Parts Sabotaged . | . . . Parts Stolen . | . . . Parts Stripped . | . . . Power Chain Reactions . | . . . Alert | -11 -10 -10 ------- Run | Yrd Mat Min Peak Influence 263 | 35 263 51 Initial 51 | . 22 51 Average 97 | 5 129 51 Maximum Alert Level 1 | . 1 . Low Security (%) 81 | 100 75 100 Level 1 18 | . 24 . Level 2 . | . . . Level 3 . | . . . Level 4 . | . . . Level 5 . | . . . High Security . | . . . Max Security . | . . . Squads Dispatched 1 | . 1 . Investigation 1 | . 1 . Extermination . | . . . Reinforcement . | . . . Assault . | . . . Garrison . | . . . Intercept . | . . . Searches Triggered . | . . . Construction Impeded . | . . . Haulers Reinforced . | . . . Active Scanning Responses . | . . . Cargo Convoy Interrupts . | . . . Stealth | -11 -10 -10 --------- Run | Yrd Mat Min Distress Signals 1 | . 1 . Communications Jammed . | . . . Distress Signals . | . . . Times Spotted 21 | 1 18 2 Peak Tracking Total 3 | 1 3 2 Tactical Retreats 1 | . 1 . Traps | -11 -10 -10 ------- Run | Yrd Mat Min Traps Triggered 3 | . 3 . Indirectly . | . . . Trap Hack Attempts . | . . . Triggered . | . . . Disarmed . | . . . Reprogrammed . | . . . Reused . | . . . Traps Extracted . | . . . Installed . | . . . Triggered . | . . . Machines | -11 -10 -10 ---------- Run | Yrd Mat Min Machines Disabled 3 | . 3 . Max in Single Turn 1 | . 1 . Machines Repaired . | . . . Machines Dismantled . | . . . Machines Sabotaged . | . . . Overloaded Fab Kills . | . . . Hacking | -11 -10 -10 --------- Run | Yrd Mat Min Machines Accessed 5 | . 5 . Terminals 3 | . 3 . Fabricators . | . . . Repair Stations 1 | . 1 . Recycling Units 1 | . 1 . Scanalyzers . | . . . Garrison Access . | . . . Total Hacks 16 | . 16 . Successful 10 | . 10 . Failed 6 | . 6 . Catastrophic . | . . . Database Lockouts . | . . . Manual 1 | . 1 . Terminals 9 | . 9 . Fabricators . | . . . Repair Stations 3 | . 3 . Recycling Units 4 | . 4 . Scanalyzers . | . . . Garrison Access . | . . . Terminal Hacks 4 | . 4 . Record 1 | . 1 . Prototype ID Bank 1 | . 1 . Alert Level 1 | . 1 . Dispatch Records 1 | . 1 . Fabricator Hacks . | . . . Repair Station Hacks 3 | . 3 . Scan Component 1 | . 1 . Repair 1 | . 1 . Refit 1 | . 1 . Recycling Unit Hacks 3 | . 3 . Recycle Component 1 | . 1 . Process 2 | . 2 . Scanalyzer . | . . . Garrison Access Hacks . | . . . Unauthorized Hacks . | . . . Terminals . | . . . Fabricators . | . . . Repair Stations . | . . . Recycling Units . | . . . Scanalyzers . | . . . Garrison Access . | . . . Data Cores Recovered . | . . . Used . | . . . Hacking Detections 3 | . 3 . Full Trace Events 3 | . 3 . Feedback Events . | . . . Feedback Blocked . | . . . Robot Schematics Acquired . | . . . Robots Built . | . . . Authchips . | . . . Time . | . . . Total Robot Build Rating . | . . . Part Schematics Acquired . | . . . Parts Built . | . . . Authchips . | . . . Time . | . . . Total Part Build Rating . | . . . Parts Repaired . | . . . Time 26 | . 26 . Parts Recycled 1 | . 1 . Recycled Matter 123 | . 123 . Retrieved Matter . | . . . Retrieved Components . | . . . Parts Scanalyzed . | . . . Part Schematics Acquired . | . . . Parts Damaged . | . . . Bothacking | -11 -10 -10 ------------ Run | Yrd Mat Min Used RIF Installer . | . . . Robots Hacked . | . . . Non-combat . | . . . Combat . | . . . Robot Hacks Applied . | . . . Relay Couplers Released . | . . . Fabnet Peak Effective % . | . . . Robots Rewired . | . . . Allies Hacked . | . . . Hacks Repelled . | . . . Allies | -11 -10 -10 -------- Run | Yrd Mat Min Total Allies . | . . . Largest Group . | . . . Highest-Rated Group . | . . . Highest-Rated Ally . | . . . Total Orders . | . . . Ally Attacks . | . . . Total Damage . | . . . Kills . | . . . Allies Corrupted . | . . . Allies Melted . | . . . Intel | -11 -10 -10 ------- Run | Yrd Mat Min Robot Analysis Total . | . . . Derelict Logs Recovered . | . . . Drone Launches . | . . . Drone Recoveries . | . . . Exploration | -11 -10 -10 ------------- Run | Yrd Mat Min Turns Passed 900 | 225 669 6 Spaces Moved 933 | 208 725 . Core 51 | 35 16 . Treads . | . . . Legs 232 | 7 225 . Wheels 324 | 166 158 . Hover 21 | . 21 . Flight 305 | . 305 . Fastest Speed 37 | 50 37 . Average Speed 74 | 76 73 . Slowest Speed 150 | 120 150 . Overloaded Moves . | . . . Propulsion Burnouts . | . . . Robots Hopped 4 | . 4 . Cave-ins Triggered . | . . . Exploration Rate (%) 25 | 8 64 4 Regions Visited 2 Branch Regions 1 Pre-discovered Areas . | . . . Known Exits Taken 1 | . 1 . Unknown Exits Taken 1 | 1 . . Scrap Searched . | . . . Spaces Dug . | . . . Terrain Destroyed 42 | . 42 . Melee . | . . . Projectile . | . . . AOE 42 | . 42 . Terrain Rammed . | . . . Walls Destroyed . | . . . Machines Disabled . | . . . Actions | -11 -10 -10 --------- Run | Yrd Mat Min Total 1055 | 255 797 3 Wait 6 | 2 4 . Move 925 | 207 718 . Hop 3 | . 3 . Pick Up 12 | 9 3 . Fast Attach 11 | . 11 . Attach 11 | 6 5 . Detach 3 | 2 1 . Swap 2 | . 2 . Drop 8 | . 8 . Fire 60 | 20 37 3 Melee . | . . . Ram 10 | 9 1 . Kick 4 | . 4 . Crush . | . . . Escape Stasis . | . . . Rewire . | . . . Trap . | . . . Miscellaneous . | . . . Route ------- -11/Scrapyard -10/Materials (discovered 3 exits: *Mat / *Min x2) -10/Mines History --------- Turn | Location | Event 2 | -11/Scrapyard | Met Revision 17 174 | -11/Scrapyard | Discovered new exit (range 8) 226 | -11/Scrapyard | Entered Materials 319 | -10/Materials | Build established: Mutant 488 | -10/Materials | Core integrity fell below 50% 669 | -10/Materials | Core integrity fell below 20% 709 | -10/Materials | Lost 4 parts (1p2n1w) 751 | -10/Materials | Discovered new exit (range 11) 755 | -10/Materials | Identified exit to Mines 834 | -10/Materials | Discovered new exit (range 17) 840 | -10/Materials | Identified exit to Materials 883 | -10/Materials | Discovered exit to Mines (range 15) 895 | -10/Materials | Entered Mines 901 | -10/Mines | Destroyed by G-47 Trooper with Particle Gun Last Messages --------------- >>Repair Repairing Flight Unit... ETC: 26 >>Refit Scanning configuration... Attaching: Backup Propulsion I x1 Different forms of propulsion may not be used simultaneously, Flight Unit automatically deactivated. T-07 Excavator is excavating. EXIT=FOUND: MINES Slammed into K-01 Serf. Destabilizing: System interference. Signal Interpreter temporarily disabled. LOCATION=MINES GOAL=ESCAPE Something is scanning the area. Critical hit (Burn: +37). [Achievement: First Step to Greatness] Map ----- +----------------------------------------------------+ | ?????????????????????????????????????????????????? | | ?????????????????????????????????????????????????? | | ?????????????????????????????????????????????????? | | ?????????????????????????????????????????????????? | | ?????????????????????????????????????????????????? | | ?????????????????????????????????????????????????? | | ?????????????????????????????????????????????????? | | ?????????????????????????????????????????????????? | | ?????????????????????????????????????????????????? | | ?????????????????????????????????????????????????? | | ?????????????????????????????????????????????????? | | ?????????????????????????????????????????????????? | | ?????????????????????????????????????????????????? | | ?????????????????????????????????????????????????? | | ?????????????????????????????????????????????????? | | ?????????????????????????????????????????????????? | | ?????????????????????????????????????????????????? | | ?????????????????????????????????????????????????? | | ?????????????????????????????????????????????????? | | ?????????????????????????????????????????????????? | | ?????????????????????????????????????????????????? | | ?????????????????????????????????????????????????? | | ?????????????????????????????????????????????????? | | ????????????????????????###??????????????????????? | | ??????????????????# #### ##?????????????????????? | | ??????????????????# @ #?????????????????????? | | ??????????????????# ### #????????????????????? | | ???????????????????????# #???????????????????? | | ??????????????????????? g#??????????????????? | | ??????????????????????# g #?????????????????? | | ??????????????????????## ## ????????????????? | | ???????????????????????####? ???????????????? | | ????????????????????????????? ??????????????? | | ????????????????????????????? ????????????? | | ?????????????????????????????? #???????????? | | ?????????????????????????????? ####???????????? | | ??????????????????????????????? ##??????????????? | | ??????????????????????????????? ##???????????????? | | ????????????????????????????????#????????????????? | | ?????????????????????????????????????????????????? | | ?????????????????????????????????????????????????? | | ?????????????????????????????????????????????????? | | ?????????????????????????????????????????????????? | | ?????????????????????????????????????????????????? | | ?????????????????????????????????????????????????? | | ?????????????????????????????????????????????????? | | ?????????????????????????????????????????????????? | | ?????????????????????????????????????????????????? | | ?????????????????????????????????????????????????? | | ?????????????????????????????????????????????????? | +----------------------------------------------------+ Best States ------------- Heat Dissipation 25 Energy Generation 10 Energy Capacity 125 Matter Stores 300 Matter Capacity 300 Sight Range 18 Terrain Scan Density 10 Evasion (%) 62 Item Schematics ----------------- None Robot Schematics ------------------ None Fabricated ------------ Nothing Alien Tech Used ----------------- None Achievements -------------- Crack Shot First Step to Greatness Let's See Who's Tougher Challenges ------------ None Game ------ Seed DeuteriumDeuteriumRailgun Manual? 0 Play Time 00:34:04 Cumulative 0.5 hours Start 2024.04.23 @ 14:26:53 End 2024.04.26 @ 17:50:06 Sessions 4 Manual Loads 0 Difficulty Rogue Special Mode None Game No. 1 Rogue 1 Adventurer 0 Explorer 0 Win Type - Total 0 Types 0/0/0/0/0/0/0/0/0 Lore% 0 Gallery% 1 Achievement% 1 Wizard Run 0 Options --------- Layout 1 ASCII 0 Keyboard 1 Movement Vi Keybinds 0 Fullscreen 1 Font 16/SmallcapsGlow Map View 50x40 Zoom Use 0% Tactical HUD 0 Map Filters NONE Filters NONE Steam 1 RUN: 078b1f61-2208-45c0-bbe7-516de183beaa